[Event "Polish Youth 1st League 2022"]
[Site "Lublin"]
[Date "2022.06.29"]
[Round "5.29"]
[White "Kroliczek, Gabriela"]
[Black "Kudlak, Julia"]
[Result "1/2-1/2"]
[ECO "B57"]
[WhiteElo "1934"]
[BlackElo "1654"]
[Annotator "TA"]
[PlyCount "98"]
[EventDate "2022.06.24"]
[EventType "team-tourn"]
[EventCountry "POL"]
[SourceTitle "playchess.com"]
[Source "ChessBase"]
[SourceQuality "1"]
[TimeControl "40/5400+30:1800+30"]

{[%evp 15,98,41,189,200,197,202,233,227,335,302,301,282,294,288,304,241,363,285,289,294,247,251,258,252,681,128,241,247,247,246,247,261,250,254,252,182,163,137,168,157,160,155,156,147,168,131,149,156,150,149,152,152,148,136,177,177,277,278,333,251,251,248,257,185,275,122,124,0,0,0,0,0,0,0,0,0,0,0,0,0,0,0,0,0,0]} 1. e4 {[%emt 0:00:03]} c5 {[%emt 0:00:09]} 2. Nc3 {[%emt 0:00:04]} Nc6 {[%emt 0:01:14]} 3. Nf3 {[%emt 0:00:04]} d6 {[%emt 0:01:40]} 4. d4 {[%emt 0:00:06]} cxd4 {[%emt 0:01:14]} 5. Nxd4 {[%emt 0:00:04]} Nf6 {[%emt 0:02:00]} 6. Bc4 {[%emt 0:00:32]} g6 {[%emt 0:01:17]} 7. Nxc6 {[%emt 0:01:26]} bxc6 {[%emt 0:01:46]} 8. e5 {[%emt 0:01:35]} d5 {[%emt 0:11:59]} (8... Ng4 $14) 9. exf6 $18 {[%emt 0:08:49][%cal Rc3d5] And now Nxd5! would win. B57: Classical Sicilian: Sozin with 6...Qb6.} dxc4 {[%emt 0:00:16] [#]} 10. Qf3 {[%emt 0:01:46]} Qc7 {[%emt 0:04:37]} (10... Qd6 11. Bf4 (11. Ne4 Qd5 $14) 11... Qxf6 12. O-O-O) 11. O-O {[%emt 0:41:38] [#] Strongly threatening Re1. White is clearly better.} Be6 $146 {[%emt 0:07:09]} (11... e5 {was necessary.} 12. Re1 Bd6) ({Predecessor:} 11... Bb7 12. Bf4 e5 13. Bxe5 Qb6 14. Rfe1 O-O-O 15. Qg4+ Rd7 16. Rad1 Qd8 17. Qxc4 Bd6 18. Bxd6 Rxd6 19. Rxd6 Qxd6 20. Qxf7 Qd2 21. Qe6+ {1-0 (21) Hoffman,M-Vohnout,P Czech Republic 1999}) 12. Bf4 {[%emt 0:05:00]} Qb7 {[%emt 0:02:37]} 13. Be5 {[%emt 0:01:36]} Rg8 {[%emt 0:00:31]} 14. Ne4 {[%emt 0:00:27]} Qb5 {[%emt 0:10:16] Against Nc5} 15. fxe7 {[%emt 0:07:26]} Bxe7 {[%emt 0:03:13]} (15... Qxe5 $142 16. Nf6+ (16. exf8=R+ Kxf8 17. Nf6 Rh8 $16) 16... Kxe7 17. Nxg8+ Kd7) 16. Nf6+ {[%emt 0:00:35]} Bxf6 {[%emt 0:01:57]} 17. Qxf6 {[%emt 0:00:25] aiming for Bd6.} (17. Bxf6 $6 Kd7 18. Rfe1 a5 $18) 17... Rd8 {[%emt 0:04:12] Against Bd6} 18. Rad1 {[%emt 0:01:11][%csl Gf6][%cal Rd1d8]} Rd5 {[%emt 0:00:32]} 19. b3 {[%emt 0:07:30] Threatens to win with bxc4.} (19. Bd6 $6 Qb7 20. b3 Kd7 $18) 19... Kd7 $2 {[%emt 0:02:01]} (19... c3 20. Bd6 Qb7 21. Qxc3 Kd7) 20. Qf4 $2 {[%emt 0:03:29]} (20. bxc4 $18 {is the precise move to win.} Qxc4 21. Rb1) 20... g5 {[%emt 0:04:56]} (20... Rxd1 $16 {might work better.} 21. Rxd1+ Kc8) 21. Qe3 {[%emt 0:02:07]} (21. bxc4 gxf4 22. cxb5 Bh3 23. Rxd5+ (23. Bxf4 $2 Rxg2+ 24. Kh1 Rg4 $19) 23... cxd5 $11) (21. Qxc4 Qxc4 22. bxc4 Rxd1 23. Rxd1+ Kc8 $14) 21... Kc8 {[%emt 0:01:08]} 22. bxc4 {[%emt 0:02:53]} ({Inferior is} 22. Qxa7 Rxe5 23. Qa8+ Qb8 24. Qxc6+ Qc7 25. Qa8+ Qb8 26. Qc6+ Qc7 27. Qa8+ Qb8 28. Qc6+ $11) 22... Rxe5 {[%emt 0:04:32]} 23. cxb5 {[%emt 0:00:04]} Rxe3 {[%emt 0:00:07]} 24. fxe3 {[%emt 0:00:02]} cxb5 {[%emt 0:02:16][%mdl 4096] Endgame KRR-KRB} 25. a3 {[%emt 0:02:10]} Kb7 {[%emt 0:02:19]} 26. Rb1 {[%emt 0:09:19]} Kc6 {[%emt 0:00:43]} 27. e4 {[%emt 0:02:03]} g4 {[%emt 0:00:50]} 28. Rfd1 {[%emt 0:00:57]} Rg5 {[%emt 0:00:44]} 29. Kf2 {[%emt 0:00:33]} Rc5 {[%emt 0:00:45]} 30. Rb2 {[%emt 0:00:04]} Rc4 {[%emt 0:02:37]} 31. Ke3 {[%emt 0:00:26]} a5 {[%emt 0:02:36]} 32. Rd4 {[%emt 0:01:27] Rxc4+ is the strong threat.} Rc3+ {[%emt 0:00:53]} 33. Rd3 {[%emt 0:00:05]} Rc4 {[%emt 0:00:14]} 34. g3 {[%emt 0:00:56]} Kc5 {[%emt 0:00:48]} 35. Rdb3 {[%emt 0:00:13]} Ra4 {[%emt 0:02:18]} (35... Bd7 $142 36. Kf4 f6) 36. Rxb5+ {[%emt 0:00:10]} Kc6 {[%emt 0:00:07]} 37. Rh5 {[%emt 0:01:09]} ({Don't play} 37. Rb6+ Kc5 38. R6b5+ Kc6) 37... Rxa3+ {[%emt 0:00:28]} 38. Kd4 {[%emt 0:00:30]} Ra4+ {[%emt 0:00:52]} 39. Ke5 {[%emt 0:00:30]} Ra1 {[%emt 0:00:24] [#]} (39... Rc4 $142 40. Kf4 (40. Rxh7 a4 $14) 40... Rc5 41. Rxh7 a4) 40. Rxh7 {[%emt 0:00:00]} (40. Kf6 $1 $18 {and the rest is easy.}) 40... a4 $16 {[%emt 0:00:00][%cal Ba5a4,Ba4a3][%mdl 32]} 41. Rh8 {[%emt 0:02:26]} (41. Rb4 $16) 41... a3 $11 {[%emt 0:05:01] The position is equal.} 42. Rb4 {[%emt 0:02:22]} a2 {[%emt 0:02:49]} 43. Ra8 {[%emt 0:08:28] Black must now prevent c4.} Rc1 $1 {[%emt 0:02:27]} 44. Rba4 {[%emt 0:01:16][%cal Oc2c4] Hoping for c4!} Rxc2 {[%emt 0:01:06]} 45. R8a6+ {[%emt 0:01:02]} Kb5 {[%emt 0:00:55]} 46. R6a5+ {[%emt 0:00:23]} Kb6 {[%emt 0:00:20]} 47. Ra6+ {[%emt 0:00:25]} Kb5 {[%emt 0:00:07]} 48. R6a5+ {[%emt 0:00:11]} Kb6 {[%emt 0:00:34]} 49. Ra6+ {[%emt 0:00:10]} Kb5 {[%emt 0:02:05] Black defended with fortune.  Weighted Error Value: White=0.36/Black=0.36} 1/2-1/2

[Event "Polish Youth 1st League 2022"]
[Site "Lublin"]
[Date "2022.06.29"]
[Round "5.30"]
[White "Dzierzgowska, Jagoda"]
[Black "Seemann, Pola"]
[Result "1/2-1/2"]
[ECO "D02"]
[WhiteElo "1267"]
[BlackElo "1777"]
[Annotator "NA RC"]
[PlyCount "79"]
[EventDate "2022.06.24"]
[EventType "team-tourn"]
[EventCountry "POL"]
[SourceTitle "playchess.com"]
[Source "ChessBase"]
[SourceQuality "1"]
[TimeControl "40/5400+30:1800+30"]

1. d4 {[%emt 0:00:08]} d5 {[%emt 0:00:04]} 2. Nf3 {[%emt 0:00:21]} Nf6 {[%emt 0:00:07]} 3. Bf4 {[%emt 0:00:13]} c5 {[%emt 0:00:14]} 4. c3 {[%emt 0:00:07]} Nc6 {[%emt 0:00:06]} 5. e3 {[%emt 0:00:13]} Qb6 {[%emt 0:00:08]} 6. Qc2 {[%emt 0:01:30]} g6 {[%emt 0:00:07]} 7. dxc5 {[%emt 0:04:17]} Qxc5 {[%emt 0:00:34]} 8. Bd3 {[%emt 0:00:53]} Bg7 {[%emt 0:02:21]} 9. h3 {[%emt 0:02:14]} O-O {[%emt 0:01:44]} 10. Nbd2 {[%emt 0:00:31]} Re8 {[%emt 0:02:40]} 11. e4 {[%emt 0:06:00]} e5 {[%emt 0:06:44]} 12. Bh2 {[%emt 0:03:17]} Qb6 {[%emt 0:03:54]} 13. O-O {[%emt 0:04:08]} Bd7 {[%emt 0:04:04]} 14. Rfe1 {[%emt 0:02:12]} Rac8 {[%emt 0:02:40]} 15. Qb3 {[%emt 0:03:45]} Qc5 {[%emt 0:12:30]} 16. exd5 {[%emt 0:03:43]} Na5 {[%emt 0:10:57]} 17. Qb4 {[%emt 0:11:24]} Qxd5 {[%emt 0:06:05]} 18. Be4 {[%emt 0:05:35]} Nxe4 {[%emt 0:01:28]} 19. Qxe4 {[%emt 0:01:54]} Qxe4 {[%emt 0:07:44]} 20. Nxe4 {[%emt 0:01:12]} Rc6 {[%emt 0:01:38]} 21. Rad1 {[%emt 0:02:05]} Bf5 {[%emt 0:08:03]} 22. Nd6 {[%emt 0:03:07]} Rxd6 {[%emt 0:10:55]} 23. Rxd6 {[%emt 0:00:28]} Nc4 {[%emt 0:00:21]} 24. Rd5 {[%emt 0:01:16]} Nxb2 {[%emt 0:05:45]} 25. Nxe5 {[%emt 0:03:14]} Nc4 {[%emt 0:04:01]} 26. f4 {[%emt 0:06:26]} b6 {[%emt 0:02:02]} 27. Bg3 {[%emt 0:03:13]} Nxe5 {[%emt 0:01:19]} 28. fxe5 {[%emt 0:04:08]} Rc8 {[%emt 0:00:11]} 29. Rc1 {[%emt 0:01:57]} Bh6 {[%emt 0:00:07]} 30. Rcd1 {[%emt 0:01:41]} Rxc3 {[%emt 0:00:21]} 31. Rd8+ {[%emt 0:01:18]} Kg7 {[%emt 0:00:10]} 32. Be1 {[%emt 0:00:29]} Rc2 {[%emt 0:01:05]} 33. Bb4 {[%emt 0:00:53]} Be3+ {[%emt 0:00:39]} 34. Kh1 {[%emt 0:00:50]} h5 {[%emt 0:00:42]} 35. Be7 {[%emt 0:00:42]} g5 {[%emt 0:01:09]} 36. Bf6+ {[%emt 0:00:20]} Kg6 {[%emt 0:00:20]} 37. Rg8+ {[%emt 0:04:34]} Kh6 {[%emt 0:00:39]} 38. Rh8+ {[%emt 0:02:29]} Kg6 {[%emt 0:00:11]} 39. Rg8+ {[%emt 0:00:53]} Kh6 {[%emt 0:00:08]} 40. Rh8+ {[%emt 0:00:00]} 1/2-1/2

[Event "Polish Youth 1st League 2022"]
[Site "Lublin"]
[Date "2022.06.30"]
[Round "6.1"]
[White "Madej, Marek"]
[Black "Klim, Filip"]
[Result "0-1"]
[ECO "B34"]
[WhiteElo "1978"]
[BlackElo "2015"]
[Annotator "RC"]
[PlyCount "64"]
[EventDate "2022.06.24"]
[EventType "team-tourn"]
[EventCountry "POL"]
[SourceTitle "playchess.com"]
[Source "ChessBase"]
[SourceQuality "1"]
[TimeControl "40/5400+30:1800+30"]

1. e4 {[%emt 0:00:12]} c5 {[%emt 0:00:08]} 2. Nc3 {[%emt 0:00:08]} Nc6 {[%emt 0:00:08]} 3. Nge2 {[%emt 0:00:13]} g6 {[%emt 0:00:21]} 4. d4 {[%emt 0:00:56]} cxd4 {[%emt 0:00:17]} 5. Nxd4 {[%emt 0:00:02]} Bg7 {[%emt 0:00:08]} 6. Nde2 {[%emt 0:01:05]} d6 {[%emt 0:02:16]} 7. g3 {[%emt 0:00:23]} Nf6 {[%emt 0:00:46]} 8. Bg2 {[%emt 0:00:08]} O-O {[%emt 0:00:33]} 9. O-O {[%emt 0:00:11]} Bd7 {[%emt 0:02:44]} 10. a4 {[%emt 0:03:09]} Rc8 {[%emt 0:04:50]} 11. Nd5 {[%emt 0:02:18]} Nxd5 {[%emt 0:05:09]} 12. exd5 {[%emt 0:00:01]} Ne5 {[%emt 0:00:57]} 13. Ra2 {[%emt 0:01:00]} Bg4 {[%emt 0:11:31]} 14. f3 {[%emt 0:04:23]} Qb6+ {[%emt 0:04:24]} 15. Kh1 {[%emt 0:01:40]} Bf5 {[%emt 0:03:43]} 16. b3 {[%emt 0:02:52]} Qc5 {[%emt 0:04:54]} 17. Nd4 {[%emt 0:03:58]} Bd3 {[%emt 0:02:57]} 18. Ne6 {[%emt 0:16:09]} Bxc2 {[%emt 0:10:51]} 19. Rxc2 {[%emt 0:06:24]} Qxc2 {[%emt 0:00:24]} 20. Nxf8 {[%emt 0:00:06]} Kxf8 {[%emt 0:03:48]} 21. Be3 {[%emt 0:02:26]} a6 {[%emt 0:11:16]} 22. Qd4 {[%emt 0:05:22]} Qxb3 {[%emt 0:06:33]} 23. Bg5 {[%emt 0:03:30]} h6 {[%emt 0:10:36]} 24. f4 {[%emt 0:02:03]} Qd3 {[%emt 0:04:39]} 25. Qb6 {[%emt 0:01:55]} hxg5 {[%emt 0:02:10]} 26. fxe5 {[%emt 0:00:02]} Bxe5 {[%emt 0:00:54]} 27. Qxb7 {[%emt 0:00:14]} Rc2 {[%emt 0:00:53]} 28. Qb4 {[%emt 0:02:52]} Bd4 {[%emt 0:03:10]} 29. Qb8+ {[%emt 0:02:18]} Kg7 {[%emt 0:00:02]} 30. Qe8 {[%emt 0:01:33]} Bf6 {[%emt 0:00:17]} 31. Qd7 {[%emt 0:01:49]} Qe2 {[%emt 0:00:13]} 32. Rg1 {[%emt 0:00:21]} Bd4 {[%emt 0:00:13]} 0-1

[Event "Polish Youth 1st League 2022"]
[Site "Lublin"]
[Date "2022.06.30"]
[Round "6.2"]
[White "Bartodziej, Bartosz"]
[Black "Nowak, Filip"]
[Result "0-1"]
[ECO "C54"]
[WhiteElo "1902"]
[BlackElo "1819"]
[Annotator "RC"]
[PlyCount "136"]
[EventDate "2022.06.24"]
[EventType "team-tourn"]
[EventCountry "POL"]
[SourceTitle "playchess.com"]
[Source "ChessBase"]
[SourceQuality "1"]
[TimeControl "40/5400+30:1800+30"]

1. e4 {[%emt 0:00:02]} e5 {[%emt 0:00:10]} 2. Nf3 {[%emt 0:00:08]} Nc6 {[%emt 0:00:06]} 3. Bc4 {[%emt 0:00:06]} Bc5 {[%emt 0:00:07]} 4. c3 {[%emt 0:00:14]} Nf6 {[%emt 0:00:07]} 5. d3 {[%emt 0:00:06]} a6 {[%emt 0:00:22]} 6. Nbd2 {[%emt 0:00:34]} d6 {[%emt 0:01:07]} 7. Bb3 {[%emt 0:00:08]} h6 {[%emt 0:00:27]} 8. h3 {[%emt 0:01:39]} Ba7 {[%emt 0:00:39]} 9. Nf1 {[%emt 0:01:16]} O-O {[%emt 0:00:54]} 10. Ng3 {[%emt 0:04:07]} Re8 {[%emt 0:02:02]} 11. O-O {[%emt 0:00:46]} Be6 {[%emt 0:01:00]} 12. Re1 {[%emt 0:04:27]} d5 {[%emt 0:02:30]} 13. exd5 {[%emt 0:02:25]} Bxd5 {[%emt 0:00:16]} 14. Be3 {[%emt 0:09:40]} Bxe3 {[%emt 0:20:35]} 15. Rxe3 {[%emt 0:01:43]} Bxb3 {[%emt 0:10:42]} 16. Qxb3 {[%emt 0:06:20]} Qd5 {[%emt 0:00:40]} 17. Qc2 {[%emt 0:21:57]} g6 {[%emt 0:08:18]} 18. a3 {[%emt 0:06:28]} Rad8 {[%emt 0:03:43]} 19. Rae1 {[%emt 0:01:50]} Kg7 {[%emt 0:04:55]} 20. Ne2 {[%emt 0:10:08]} Qd6 {[%emt 0:08:55]} 21. Nc1 {[%emt 0:02:33]} Nd5 {[%emt 0:03:17]} 22. R3e2 {[%emt 0:00:48]} Nf4 {[%emt 0:01:40]} 23. Re3 {[%emt 0:01:15]} f5 {[%emt 0:01:59]} 24. Qb3 {[%emt 0:06:41]} b6 {[%emt 0:03:20]} 25. Qa4 {[%emt 0:02:35]} Nd5 {[%emt 0:02:17]} 26. R3e2 {[%emt 0:00:27]} a5 {[%emt 0:00:15]} 27. Kf1 {[%emt 0:07:24]} Re7 {[%emt 0:01:45]} 28. Nd2 {[%emt 0:04:31]} Rde8 {[%emt 0:02:12]} 29. Nc4 {[%emt 0:00:15]} Qf6 {[%emt 0:00:43]} 30. Qc2 {[%emt 0:00:59]} Qg5 {[%emt 0:00:29]} 31. f3 {[%emt 0:02:24]} Nf4 {[%emt 0:03:19]} 32. Re3 {[%emt 0:00:07]} b5 {[%emt 0:00:34]} 33. Nxa5 {[%emt 0:02:23]} Nxa5 {[%emt 0:00:11]} 34. Qf2 {[%emt 0:00:27]} Nd5 {[%emt 0:01:42]} 35. R3e2 {[%emt 0:00:30]} Nb7 {[%emt 0:04:12]} 36. Nb3 {[%emt 0:00:29]} Nd6 {[%emt 0:00:06]} 37. h4 {[%emt 0:00:29]} Qf6 {[%emt 0:00:28]} 38. Na5 {[%emt 0:00:28]} e4 {[%emt 0:05:10]} 39. dxe4 {[%emt 0:00:15]} fxe4 {[%emt 0:00:13]} 40. Qc5 {[%emt 0:00:00]} exf3 {[%emt 0:00:00]} 41. Rxe7+ {[%emt 0:01:51]} Rxe7 {[%emt 0:07:13]} 42. Rxe7+ {[%emt 0:00:22]} Nxe7 {[%emt 0:00:02]} 43. Qxc7 {[%emt 0:00:49]} fxg2+ {[%emt 0:04:11]} 44. Kxg2 {[%emt 0:00:02]} Ndf5 {[%emt 0:00:29]} 45. Nb7 {[%emt 0:00:56]} Nxh4+ {[%emt 0:00:47]} 46. Kg1 {[%emt 0:00:22]} Nhf5 {[%emt 0:02:51]} 47. Nc5 {[%emt 0:00:47]} Qg5+ {[%emt 0:00:52]} 48. Kf1 {[%emt 0:00:14]} Qc1+ {[%emt 0:00:07]} 49. Ke2 {[%emt 0:00:14]} Qxb2+ {[%emt 0:00:15]} 50. Kd3 {[%emt 0:00:02]} Qb1+ {[%emt 0:00:00]} 51. Kd2 {[%emt 0:00:40]} Qa2+ {[%emt 0:00:00]} 52. Kd3 {[%emt 0:00:10]} Qd5+ {[%emt 0:00:00]} 53. Kc2 {[%emt 0:00:12]} Qd6 {[%emt 0:04:26]} 54. Qxd6 {[%emt 0:01:52]} Nxd6 {[%emt 0:00:05]} 55. a4 {[%emt 0:00:38]} bxa4 {[%emt 0:00:07]} 56. Nxa4 {[%emt 0:00:12]} h5 {[%emt 0:00:20]} 57. Kd3 {[%emt 0:00:07]} h4 {[%emt 0:00:10]} 58. Ke2 {[%emt 0:00:14]} g5 {[%emt 0:00:20]} 59. Kf3 {[%emt 0:00:10]} Kg6 {[%emt 0:01:44]} 60. Nc5 {[%emt 0:01:24]} Nc6 {[%emt 0:00:29]} 61. Ne6 {[%emt 0:02:26]} Ne5+ {[%emt 0:00:30]} 62. Kg2 {[%emt 0:00:09]} Kf6 {[%emt 0:00:43]} 63. Nd4 {[%emt 0:00:22]} g4 {[%emt 0:00:30]} 64. Ne2 {[%emt 0:01:32]} Ne4 {[%emt 0:01:00]} 65. Nf4 {[%emt 0:03:03]} Kf5 {[%emt 0:00:39]} 66. Nd5 {[%emt 0:00:23]} h3+ {[%emt 0:00:28]} 67. Kh1 {[%emt 0:00:23]} Nf3 {[%emt 0:01:28]} 68. Ne3+ {[%emt 0:00:18]} Ke5 0-1

[Event "Polish Youth 1st League 2022"]
[Site "Lublin"]
[Date "2022.06.30"]
[Round "6.3"]
[White "Grot, Blazej"]
[Black "Nawalaniec, Adam"]
[Result "1/2-1/2"]
[ECO "C10"]
[WhiteElo "1819"]
[BlackElo "1740"]
[Annotator "NA RC"]
[PlyCount "107"]
[EventDate "2022.06.24"]
[EventType "team-tourn"]
[EventCountry "POL"]
[SourceTitle "playchess.com"]
[Source "ChessBase"]
[SourceQuality "1"]
[TimeControl "40/5400+30:1800+30"]

1. e4 {[%emt 0:00:04]} e6 {[%emt 0:00:04]} 2. d4 {[%emt 0:00:05]} d5 {[%emt 0:00:06]} 3. Nc3 {[%emt 0:00:04]} dxe4 {[%emt 0:00:07]} 4. Nxe4 {[%emt 0:00:11]} Bd7 {[%emt 0:00:28]} 5. Nf3 {[%emt 0:01:12]} Bc6 {[%emt 0:00:36]} 6. Bd3 {[%emt 0:00:29]} Nd7 {[%emt 0:00:51]} 7. O-O {[%emt 0:01:19]} Ngf6 {[%emt 0:02:40]} 8. Ng3 {[%emt 0:01:31]} g6 {[%emt 0:02:43]} 9. c3 {[%emt 0:04:00]} Bg7 {[%emt 0:02:42]} 10. Re1 {[%emt 0:02:15]} O-O {[%emt 0:01:31]} 11. Bf4 {[%emt 0:01:30]} b6 {[%emt 0:09:03]} 12. Qe2 {[%emt 0:02:30]} Bb7 {[%emt 0:08:59]} 13. Rad1 {[%emt 0:04:32]} Qc8 {[%emt 0:10:21]} 14. Ne5 {[%emt 0:06:56]} c5 {[%emt 0:09:32]} 15. Ne4 {[%emt 0:02:38]} Nh5 {[%emt 0:07:18]} 16. Qe3 {[%emt 0:05:35]} Nxf4 {[%emt 0:04:36]} 17. Qxf4 {[%emt 0:00:10]} Qb8 {[%emt 0:01:41]} 18. Ng3 $15 {[%emt 0:11:43]} (18. Ng5 $11 {deserves consideration.} h6 19. Ngf3) 18... f6 {[%emt 0:08:08] [#]} (18... Bd5 $15 19. Be4 cxd4 20. cxd4 Nxe5 21. Bxd5 {[#]} Nd7 $1 22. Qxb8 Raxb8) 19. Qg4 $1 {[%emt 0:00:12]} Nxe5 {[%emt 0:05:01]} 20. dxe5 {[%emt 0:00:05]} f5 {[%emt 0:00:15]} 21. Qf4 {[%emt 0:00:43]} Bd5 {[%emt 0:05:07]} 22. Bc4 {[%emt 0:03:25] [#]} (22. h4 $11) 22... g5 $1 {[%emt 0:01:29]} 23. Qxg5 {[%emt 0:01:26]} Bxc4 {[%emt 0:01:34]} 24. Nh5 {[%emt 0:05:25]} ({But not} 24. Rd7 $2 Rf7 25. Rxf7 Kxf7 $19) 24... Qc7 {[%emt 0:02:56]} 25. b3 {[%emt 0:01:05]} (25. Nf6+ $142 Kh8 26. Qh4 Bxf6 27. exf6) 25... Bb5 {[%emt 0:01:03]} 26. Rd6 {[%emt 0:02:25]} Be8 {[%emt 0:05:16]} 27. Nf6+ {[%emt 0:01:45]} Kh8 {[%emt 0:00:06]} 28. Rxe6 {[%emt 0:00:09]} Bg6 {[%emt 0:02:21]} 29. h4 {[%emt 0:04:49]} Qf7 {[%emt 0:01:46]} 30. Rd6 {[%emt 0:00:34]} Rad8 {[%emt 0:01:49]} 31. Red1 {[%emt 0:06:08]} Rxd6 {[%emt 0:03:37]} 32. Rxd6 {[%emt 0:00:07]} Qe7 {[%emt 0:00:02]} 33. Nxh7 {[%emt 0:03:10]} Qxg5 {[%emt 0:01:51]} 34. Nxg5 {[%emt 0:00:10]} Bh7 {[%emt 0:01:17]} 35. Rd7 {[%emt 0:01:28]} Bg8 {[%emt 0:00:28]} 36. f4 {[%emt 0:00:24]} Bh6 {[%emt 0:00:24]} 37. Rxa7 {[%emt 0:00:38]} Bxg5 {[%emt 0:00:05]} 38. hxg5 {[%emt 0:00:15]} Rd8 {[%emt 0:00:02]} 39. g4 {[%emt 0:01:27]} fxg4 {[%emt 0:00:38]} 40. f5 {[%emt 0:00:00]} Rd1+ {[%emt 0:00:00]} 41. Kf2 {[%emt 0:00:58]} Rd3 {[%emt 0:07:52]} 42. e6 {[%emt 0:03:49]} Rf3+ {[%emt 0:01:41]} 43. Kg2 {[%emt 0:00:16]} Rxf5 {[%emt 0:00:24]} 44. e7 {[%emt 0:00:14]} Bf7 {[%emt 0:02:04]} 45. Ra8+ {[%emt 0:01:03]} Kg7 {[%emt 0:00:05]} 46. e8=Q {[%emt 0:00:06]} Bxe8 {[%emt 0:00:07]} 47. Rxe8 {[%emt 0:00:06]} Rxg5 {[%emt 0:01:01]} 48. Re6 {[%emt 0:00:52]} Rg6 {[%emt 0:02:08]} 49. Rxg6+ {[%emt 0:03:23]} Kxg6 {[%emt 0:00:01]} 50. a4 {[%emt 0:03:57]} Kf5 {[%emt 0:01:41]} 51. b4 {[%emt 0:01:03]} cxb4 {[%emt 0:00:28]} 52. cxb4 {[%emt 0:00:07]} Ke5 {[%emt 0:00:22]} 53. a5 {[%emt 0:00:35]} bxa5 {[%emt 0:00:03]} 54. bxa5 {[%emt 0:00:04]} 1/2-1/2

[Event "Polish Youth 1st League 2022"]
[Site "Lublin"]
[Date "2022.06.30"]
[Round "6.4"]
[White "Kowalski, Witold"]
[Black "Rozanski, Mateusz"]
[Result "1-0"]
[ECO "C50"]
[WhiteElo "1613"]
[BlackElo "1720"]
[Annotator "NA RC"]
[PlyCount "57"]
[EventDate "2022.06.24"]
[EventType "team-tourn"]
[EventCountry "POL"]
[SourceTitle "playchess.com"]
[Source "ChessBase"]
[SourceQuality "1"]
[TimeControl "40/5400+30:1800+30"]

1. e4 {[%emt 0:00:02]} e5 {[%emt 0:00:04]} 2. Nf3 {[%emt 0:00:06]} Nc6 {[%emt 0:00:05]} 3. Bc4 {[%emt 0:00:09]} d6 {[%emt 0:00:32]} 4. d4 {[%emt 0:00:06]} exd4 {[%emt 0:00:05]} 5. Nxd4 {[%emt 0:00:04]} Nf6 {[%emt 0:00:52]} 6. Nc3 {[%emt 0:00:08]} Be7 {[%emt 0:00:11]} 7. O-O {[%emt 0:00:34]} Ne5 {[%emt 0:00:13]} 8. Bb3 {[%emt 0:00:37]} O-O {[%emt 0:00:42]} 9. f4 {[%emt 0:00:43]} Nc6 {[%emt 0:00:58]} 10. h3 {[%emt 0:07:39]} Nxd4 {[%emt 0:06:18]} 11. Qxd4 {[%emt 0:00:15]} Nd7 {[%emt 0:02:54]} 12. Qd3 {[%emt 0:11:12]} Nc5 {[%emt 0:05:48]} 13. Qf3 {[%emt 0:07:09]} Ne6 {[%emt 0:07:02]} 14. Be3 {[%emt 0:06:23]} c6 {[%emt 0:12:12]} 15. Rad1 {[%emt 0:13:12]} Qa5 {[%emt 0:08:52]} 16. f5 {[%emt 0:17:02]} Nc5 {[%emt 0:00:40]} 17. Qg3 {[%emt 0:04:14]} Nd7 {[%emt 0:03:04]} 18. Kh1 {[%emt 0:10:47]} Kh8 {[%emt 0:02:29]} 19. Bd4 {[%emt 0:11:24]} f6 {[%emt 0:00:57]} 20. Ne2 {[%emt 0:01:06]} Ne5 {[%emt 0:01:26]} 21. Nf4 {[%emt 0:00:49]} d5 {[%emt 0:01:05]} 22. Nh5 {[%emt 0:01:48]} Ng6 {[%emt 0:03:32]} 23. fxg6 {[%emt 0:01:36]} dxe4 {[%emt 0:00:16]} 24. Nxf6 {[%emt 0:02:02]} Bxf6 {[%emt 0:03:01]} 25. Rxf6 {[%emt 0:00:24]} Bf5 {[%emt 0:00:36]} 26. Qh4 {[%emt 0:01:00]} Bxg6 {[%emt 0:01:10]} 27. Rxg6 {[%emt 0:00:20]} Rg8 {[%emt 0:00:58]} 28. Bxg8 {[%emt 0:00:30]} Rxg8 {[%emt 0:00:11]} 29. Bxg7+ {[%emt 0:00:21]} 1-0

[Event "Polish Youth 1st League 2022"]
[Site "Lublin"]
[Date "2022.06.30"]
[Round "6.5"]
[White "Krzyzosiak, Marta"]
[Black "Kudlak, Julia"]
[Result "1-0"]
[ECO "B23"]
[WhiteElo "1666"]
[BlackElo "1654"]
[Annotator "NA RC"]
[PlyCount "39"]
[EventDate "2022.06.24"]
[EventType "team-tourn"]
[EventCountry "POL"]
[SourceTitle "playchess.com"]
[Source "ChessBase"]
[SourceQuality "1"]
[TimeControl "40/5400+30:1800+30"]

1. e4 {[%emt 0:00:04]} c5 {[%emt 0:00:14]} 2. Nc3 {[%emt 0:00:09]} d6 {[%emt 0:00:20]} 3. d4 {[%emt 0:00:10]} cxd4 {[%emt 0:01:32]} 4. Qxd4 {[%emt 0:00:10]} Nc6 {[%emt 0:01:30]} 5. Qd2 {[%emt 0:00:08]} g6 {[%emt 0:01:39]} 6. b3 {[%emt 0:02:10]} Bh6 {[%emt 0:00:51]} 7. f4 {[%emt 0:00:28]} e5 {[%emt 0:04:22]} 8. g3 {[%emt 0:28:46]} exf4 {[%emt 0:03:42]} 9. gxf4 {[%emt 0:00:37]} Nf6 {[%emt 0:04:03]} 10. Bb2 {[%emt 0:17:40]} Nh5 {[%emt 0:02:36]} 11. Nd5 {[%emt 0:02:12]} O-O {[%emt 0:07:00]} 12. O-O-O {[%emt 0:09:51]} Bg4 {[%emt 0:09:10]} 13. Be2 {[%emt 0:01:18]} Qh4 {[%emt 0:12:45]} 14. Kb1 {[%emt 0:13:59]} Rae8 {[%emt 0:05:42]} 15. Bxg4 {[%emt 0:02:49]} Qxg4 {[%emt 0:00:45]} 16. Ne2 {[%emt 0:00:36]} Bg7 {[%emt 0:05:55]} 17. Bxg7 {[%emt 0:06:10]} Kxg7 {[%emt 0:00:09]} 18. Ng3 {[%emt 0:01:17]} Nxg3 {[%emt 0:03:33]} 19. hxg3 {[%emt 0:00:09]} Rxe4 {[%emt 0:05:34]} 20. Rxh7+ {[%emt 0:00:26]} 1-0